bitfinex/quotes_SOLUSD_20241123
["timestamp","ask_amount","ask_price","bid_price","bid_amount"]
[1732328967102,19.00134753,254.16,254.0,6.6025]
[1732328967103,23.776884,254.08,254.0,6.6025]
[1732328970510,23.776884,254.08,253.99,16.3199]
[1732328970676,23.776884,254.06,253.99,16.3199]
[1732328970882,23.776884,254.04,253.99,16.3199]
[1732328971316,23.96686977,254.12,253.99,16.3199]
[1732328971317,12.22686977,254.12,253.99,16.3199]
[1732328971485,7.32084662,254.13,253.99,16.3199]
[1732328971486,2.90995082,254.11,253.99,16.3199]
[1732328971687,7.32084662,254.13,253.99,16.3199]
[1732328971688,2.90995082,254.1,253.99,16.3199]
[1732328972003,7.32084662,254.13,253.99,16.3199]
[1732328972216,15.71366313,254.26,253.85,0.59051805]
[1732328972217,2.91012797,254.12,254.04,15.4119]
[1732328972407,12.22686977,254.25,254.05,6.2501]
[1732328972607,2.91040574,254.24,254.05,6.2501]
[1732328972901,2.91040574,254.23,254.1,15.8855]
[1732328973116,2.91040574,254.22,254.12,6.0952]
[1732328973303,12.22687,254.32,254.12,6.0952]
[1732328973505,2.90885973,254.31,254.13,15.8855]
[1732328973713,2.90885973,254.3,254.13,15.8855]
[1732328973888,2.90885973,254.29,254.15,2.5]
[1732328974214,7.42931018,254.35,254.18,6.0952]
[1732328974507,2.90669431,254.34,254.18,6.0952]
[1732328974813,2.90669431,254.33,254.18,6.0952]
[1732328975106,15.668039,254.39,254.18,6.0952]
[1732328975307,22.90658809,254.38,254.18,6.0952]
[1732328975609,23.776884,254.36,254.18,6.0952]
[1732328975786,23.776884,254.34,254.18,6.0952]
[1732328975990,2.90658809,254.33,254.19,22.5]
[1732328976307,36.47831716,254.43,254.19,22.5]
[1732328976308,15.666388,254.42,254.19,22.5]
[1732328976512,2.90203359,254.41,254.19,22.5]
[1732328976722,2.90203359,254.4,254.19,22.5]
[1732328976891,2.90203359,254.39,254.19,22.5]
[1732328977088,2.90203359,254.38,254.19,22.5]
[1732328977293,2.90203359,254.37,254.22,2.5]
[1732328977504,6.3235,254.45,254.22,2.5]
[1732328977505,15.665026,254.44,254.22,2.5]
[1732328977795,2.9000494,254.43,254.21,20.0]
[1732328978099,2.9000494,254.42,254.21,20.0]
[1732328979213,23.776884,254.41,254.21,20.0]
[1732328979407,23.776884,254.41,254.2,15.8855]
[1732328979608,23.776884,254.39,254.2,15.8855]
[1732328980108,23.776884,254.37,254.2,15.8855]
[1732328981798,2.89273666,254.36,254.2,15.8855]
[1732328981991,23.776884,254.37,254.2,15.8855]
[1732328982228,35.516884,254.36,254.2,15.8855]
[1732328983514,20.0,254.43,254.2,18.3855]
[1732328983695,27.405026,254.44,254.2,18.3855]
[1732328983696,2.89201725,254.42,254.21,20.0]
[1732328983903,2.89201725,254.41,254.23,6.1428]
[1732328984107,7.46909981,254.43,254.23,6.1428]
[1732328984313,2.89226776,254.42,254.23,6.1428]
[1732328984497,15.665026,254.44,254.23,6.1428]
[1732328984820,2.89143992,254.43,254.23,6.1428]
[1732328984997,15.665026,254.44,254.23,6.1428]
[1732328985198,23.776884,254.42,254.23,6.1428]
[1732328985399,23.776884,254.43,254.23,6.1428]
[1732328987315,11.74,254.42,254.23,6.1428]
[1732328987513,20.0,254.37,254.23,6.1428]
[1732328987710,23.776884,254.36,254.23,6.1428]
[1732328990300,23.776884,254.36,254.24,15.4611]
[1732328991005,23.07923219,254.44,254.24,15.4611]
[1732328991822,20.0,254.43,254.24,15.4611]
[1732328992517,23.776884,254.42,254.24,15.4611]
[1732328993816,23.07923219,254.44,254.23,6.1428]
[1732328993817,23.07923219,254.44,254.26,15.4418]
[1732328995018,23.776884,254.43,254.26,17.9418]
[1732328996124,23.776884,254.43,254.26,15.4418]
[1732328996518,23.776884,254.43,254.26,17.9418]
[1732328996919,23.776884,254.43,254.26,15.4418]
[1732328997123,23.776884,254.43,254.26,17.9418]
[1732328997301,23.776884,254.43,254.26,15.4418]
[1732328997697,23.776884,254.43,254.26,17.9418]
[1732328997901,23.776884,254.43,254.26,15.4418]
[1732329000022,23.776884,254.43,254.27,6.2172]
[1732329001012,23.776884,254.43,254.28,18.5369]
[1732329001224,23.776884,254.43,254.29,22.5]
[1732329001722,6.1148,254.57,254.32,16.0369]
[1732329002126,6.1148,254.57,254.31,2.5]
[1732329002127,15.659409,254.49,254.34,16.0369]
[1732329002337,11.74,254.56,254.34,16.0369]
[1732329002514,6.1148,254.57,254.34,16.0369]
[1732329002515,27.399363,254.55,254.34,16.0369]
[1732329002834,15.659363,254.55,254.34,18.5369]
[1732329003008,15.659363,254.55,254.36,16.0369]
[1732329003505,15.659363,254.55,254.36,18.5369]
[1732329003710,15.659363,254.55,254.38,16.0369]
[1732329004723,15.659363,254.55,254.4,16.0369]
[1732329005129,7.46867038,254.57,254.4,16.0369]
[1732329005334,11.74,254.62,254.4,16.0369]
[1732329005335,15.655317,254.56,254.4,16.0369]
[1732329006030,23.776884,254.55,254.4,16.0369]
[1732329011510,31.14674513,254.55,254.4,16.0369]
[1732329014615,15.655317,254.56,254.42,15.0708]
[1732329014941,6.1148,254.7,254.44,15.0708]
[1732329015118,15.0708,254.64,254.44,15.0708]
[1732329015320,15.0708,254.64,254.45,6.135]
[1732329015521,15.0708,254.64,254.46,15.0708]
[1732329016739,23.776884,254.63,254.46,15.0708]
[1732329018718,35.516884,254.63,254.46,15.0708]
[1732329020126,23.776884,254.61,254.46,15.0708]
[1732329020321,20.0,254.58,254.46,15.0708]
[1732329020636,20.0,254.56,254.46,15.0708]
[1732329021521,23.776884,254.55,254.46,15.0708]
[1732329021850,15.0708,254.64,254.46,15.0708]
[1732329023022,23.776884,254.63,254.46,15.0708]
[1732329023337,23.776884,254.61,254.46,15.0708]
[1732329023541,20.0,254.6,254.46,15.0708]
[1732329023841,23.776884,254.59,254.46,15.0708]
[1732329024539,22.44024408,254.64,254.48,15.9707]
[1732329024724,23.776884,254.63,254.48,15.9707]
[1732329025636,82.6,254.72,254.52,15.9707]
[1732329025940,15.647923,254.69,254.52,15.9707]
[1732329026127,15.647923,254.69,254.53,6.0226]
[1732329026331,15.647923,254.69,254.54,15.9707]
[1732329026935,23.776884,254.68,254.54,15.9707]
[1732329027741,23.776884,254.66,254.54,15.9707]
[1732329028137,23.776884,254.64,254.54,15.9707]
[1732329034329,20.0,254.61,254.54,15.9707]
[1732329034650,23.776884,254.62,254.54,15.9707]
[1732329034651,23.776884,254.6,254.54,15.9707]
[1732329034827,23.776884,254.62,254.54,15.9707]
[1732329035036,23.776884,254.6,254.54,15.9707]
[1732329035236,23.776884,254.62,254.54,15.9707]
[1732329035649,23.776884,254.6,254.54,15.9707]
[1732329036044,23.776884,254.62,254.54,15.9707]
[1732329036348,23.776884,254.6,254.54,15.9707]
[1732329038556,20.0,254.59,254.54,15.9707]
[1732329038855,23.776884,254.58,254.54,15.9707]
[1732329040241,23.776884,254.59,254.54,15.9707]
[1732329040756,20.0,254.56,254.54,15.9707]
[1732329041053,23.776884,254.55,254.54,15.9707]
[1732329042750,15.647923,254.69,254.54,15.9707]
[1732329044131,22.89506101,254.69,254.54,15.9707]
[1732329044331,7.24713801,254.69,254.54,15.9707]
[1732329044534,15.646905,254.71,254.54,15.9707]
[1732329045059,15.146905,254.71,254.54,15.9707]
[1732329045560,11.74,254.55,254.28,16.6112]
[1732329045734,15.0947,254.57,254.22,16.6112]
[1732329045735,11.74,254.42,254.22,16.6112]
[1732329045942,43.776884,254.43,254.09,2.5]
[1732329045943,11.74,254.35,254.09,2.5]
[1732329046248,43.776884,254.32,254.09,2.5]
[1732329046858,23.776884,254.28,254.07,2.5]
[1732329047060,20.0,254.25,254.07,2.5]
[1732329047357,20.0,254.23,254.07,2.5]
[1732329047654,20.0,254.19,254.06,2.5]
[1732329047856,23.776884,254.18,254.08,2.5]
[1732329048033,20.0,254.19,254.1,2.5]
[1732329048534,6.0042,254.36,254.1,2.5]
[1732329048535,20.0,254.3,254.12,2.5]
[1732329048735,20.0,254.28,254.12,2.5]
[1732329048941,20.0,254.26,254.14,6.3366]
[1732329049141,20.0,254.24,254.14,8.8366]
[1732329049457,23.776884,254.27,254.14,8.8366]
[1732329050160,23.776884,254.25,254.14,8.8366]
[1732329051350,20.0,254.32,254.18,2.5]
[1732329051542,31.74,254.41,254.18,2.5]
[1732329052653,23.776884,254.38,254.18,2.5]
[1732329053037,20.0,254.37,254.18,2.5]
[1732329053234,23.776884,254.36,254.18,2.5]
[1732329053650,20.0,254.33,254.18,2.5]
[1732329054168,20.0,254.31,254.18,2.5]
[1732329054659,20.0,254.29,254.18,2.5]
[1732329055037,20.0,254.27,254.14,8.8366]
[1732329055362,23.776884,254.26,254.14,6.3366]
[1732329056058,23.776884,254.24,254.14,6.3366]
[1732329056840,23.776884,254.22,254.14,6.3366]
[1732329057243,20.0,254.19,254.13,16.6112]
[1732329058239,23.776884,254.2,254.13,16.6112]
[1732329059043,23.776884,254.33,254.13,16.6112]
[1732329059341,11.74,254.35,254.13,16.6112]
[1732329059342,23.776884,254.29,254.13,19.1112]
[1732329059539,20.0,254.28,254.13,19.1112]
[1732329059744,20.0,254.28,254.12,2.5]
[1732329059745,23.776884,254.25,254.08,6.3419]
[1732329059947,20.0,254.22,254.08,8.8419]
[1732329060162,20.0,254.22,254.09,2.5]
[1732329060471,20.0,254.22,254.11,2.5]
[1732329061065,20.0,254.32,254.12,2.5]
[1732329061364,43.776884,254.32,254.12,2.5]
[1732329061750,43.776884,254.32,254.1,2.5]
[1732329061948,43.776884,254.32,254.08,8.8419]
[1732329061949,43.776884,254.3,254.08,6.3419]
[1732329062755,55.516884,254.3,254.08,6.3419]
[1732329063069,20.0,254.25,254.08,6.3419]
[1732329063250,20.0,254.23,254.08,6.3419]
[1732329063556,20.0,254.21,254.08,6.3419]
[1732329063865,35.516884,254.18,253.98,15.4632]
[1732329064067,20.0,254.15,254.0,2.5]
[1732329064373,23.776884,254.16,254.0,2.5]
[1732329064374,23.776884,254.16,254.02,2.5]
[1732329064580,23.776884,254.16,254.0,5.0]
[1732329064884,23.776884,254.16,254.02,2.5]
[1732329065049,23.776884,254.16,254.05,2.5]
[1732329066549,7.36924983,254.25,254.13,2.5]
[1732329066769,21.5555,254.35,254.13,2.5]
[1732329066979,6.458,254.35,254.17,2.5]
[1732329067656,18.91016654,254.35,254.13,2.5]
[1732329067980,18.91016654,254.35,254.11,15.4632]
[1732329067981,17.47393747,254.34,254.11,17.9632]
[1732329068153,31.74,254.33,254.12,2.5]
[1732329069050,20.0,254.31,254.12,2.5]
[1732329069249,23.776884,254.3,254.12,2.5]
[1732329069650,23.776884,254.28,254.12,2.5]
[1732329070076,23.776884,254.26,254.12,2.5]
[1732329071469,6.458,254.41,254.16,5.0]
[1732329071875,6.52321429,254.41,254.14,5.0]
[1732329072061,24.32122458,254.4,254.14,5.0]
[1732329072465,11.74,254.39,254.14,5.0]
[1732329073055,11.74,254.37,254.14,5.0]
[1732329073265,35.516884,254.36,254.14,5.0]
[1732329073469,35.516884,254.38,254.16,2.5]
[1732329073661,23.776884,254.36,254.16,2.5]
[1732329074064,23.776884,254.34,254.16,2.5]
[1732329074266,23.776884,254.32,254.16,2.5]
[1732329074485,20.0,254.31,254.16,2.5]
[1732329074675,23.776884,254.3,254.16,2.5]
[1732329075258,20.0,254.4,254.17,11.6592]
[1732329075784,20.0,254.4,254.21,2.5]
[1732329075988,20.0,254.4,254.22,15.9662]
[1732329076884,31.74,254.4,254.22,15.9662]
[1732329077187,20.0,254.34,254.22,15.9662]
[1732329077390,23.776884,254.33,254.22,15.9662]
[1732329077682,20.0,254.32,254.23,2.5]
[1732329077883,7.33015467,254.42,254.25,2.5]
[1732329078089,15.2597,254.48,254.25,2.5]
[1732329078463,18.0917,254.47,254.27,2.5]
[1732329078681,18.0917,254.47,254.28,6.6589]
[1732329079363,15.2597,254.48,254.29,2.5]
[1732329079569,22.62356016,254.48,254.28,6.6589]
[1732329079791,22.62356016,254.48,254.29,2.5]
[1732329079960,7.36386016,254.48,254.31,2.5]
[1732329080164,5.73393747,254.51,254.32,16.3222]
[1732329080463,5.73393747,254.51,254.33,2.5]
[1732329080664,6.4994,254.53,254.33,2.5]
[1732329081077,5.6492208,254.59,254.38,2.5]
[1732329081399,5.6492208,254.59,254.4,2.5]
[1732329081564,6.4994,254.6,254.4,2.5]
[1732329081966,11.74,254.61,254.4,2.5]
[1732329082166,5.6492208,254.65,254.42,2.5]
[1732329082471,11.74,254.64,254.39,6.6589]
[1732329082676,11.74,254.62,254.39,6.6589]
[1732329082889,11.74,254.58,254.39,6.6589]
[1732329083083,11.74,254.56,254.39,6.6589]
[1732329083684,11.74,254.54,254.39,6.6589]
[1732329084077,20.0,254.52,254.39,6.6589]
[1732329084275,43.776884,254.5,254.32,16.3222]
[1732329084584,55.516884,254.5,254.32,16.3222]
[1732329084785,19.20294921,254.49,254.32,16.3222]
[1732329085083,20.0,254.43,254.32,16.3222]
[1732329085269,23.776884,254.42,254.32,16.3222]
[1732329085460,20.0,254.41,254.32,16.3222]
[1732329085660,23.776884,254.4,254.32,16.3222]
[1732329085864,23.776884,254.38,254.32,16.3222]
[1732329086088,20.0,254.35,254.32,16.3222]
[1732329086459,20.0,254.37,254.24,6.6589]
[1732329086460,20.0,254.33,254.24,6.6589]
[1732329086686,20.0,254.29,254.24,6.6589]
[1732329086867,23.776884,254.28,254.23,16.3222]
[1732329087060,23.776884,254.28,254.12,2.5]
[1732329087061,20.0,254.25,254.13,16.3222]
[1732329087275,23.776884,254.24,254.13,16.3222]
[1732329087490,23.776884,254.24,254.14,2.5]
[1732329087679,23.776884,254.24,254.13,16.3222]
[1732329087878,20.0,254.27,254.13,16.3222]
[1732329087879,23.776884,254.26,254.13,16.3222]
[1732329088678,23.776884,254.24,254.14,2.5]
[1732329088900,23.776884,254.24,254.13,16.3222]
[1732329089194,23.776884,254.24,254.14,2.5]
[1732329089889,23.776884,254.24,254.15,6.6589]
[1732329090092,23.776884,254.22,254.15,6.6589]
[1732329090281,23.776884,254.2,254.15,6.6589]
[1732329091194,23.776884,254.33,254.16,2.5]
[1732329091367,22.8982857,254.32,254.16,5.0]
[1732329091694,22.8982857,254.32,254.16,2.5]
[1732329091695,20.0,254.32,254.16,2.5]
[1732329092200,20.0,254.35,254.16,2.5]
[1732329092376,2.89894052,254.34,254.16,2.5]
[1732329092572,23.776884,254.32,254.16,2.5]
[1732329092891,20.0,254.31,254.16,2.5]
[1732329093094,20.0,254.29,254.16,2.5]
[1732329093496,20.0,254.27,254.15,6.6589]
[1732329093701,14.04527468,254.36,254.15,6.6589]
[1732329093702,23.776884,254.22,254.15,6.6589]
[1732329093998,23.776884,254.18,254.13,16.3222]
[1732329094205,23.776884,254.2,254.13,16.3222]
[1732329094487,24.85185405,254.34,254.13,16.3222]
[1732329094488,23.776884,254.18,254.13,16.3222]
[1732329094894,23.776884,254.16,254.13,16.3222]
[1732329095085,20.0,254.15,254.09,6.1645]
[1732329095292,23.776884,254.14,254.09,6.1645]
[1732329095592,23.776884,254.14,254.06,16.604]
[1732329095593,23.776884,254.12,254.06,16.604]
[1732329096352,6.05717587,254.29,254.06,16.604]
[1732329096353,23.776884,254.1,254.06,16.604]
[1732329099882,7.5438101,254.17,254.06,16.604]
[1732329099883,20.0,254.16,254.06,16.604]
[1732329100086,23.776884,254.13,254.06,16.604]
[1732329100294,20.0,254.12,254.06,19.104]
[1732329100503,20.0,254.23,254.06,16.604]
[1732329100691,2.89751753,254.22,254.06,16.604]
[1732329100890,6.05717587,254.25,254.06,19.104]
[1732329101076,2.89775385,254.24,254.07,2.5]
[1732329101278,2.89775385,254.23,254.06,19.104]
[1732329101588,4.63640616,254.25,254.06,19.104]
[1732329101897,23.776884,254.23,254.06,19.104]
[1732329102297,23.776884,254.21,254.06,19.104]
[1732329102593,20.0,254.18,254.06,19.104]
[1732329102799,23.776884,254.17,254.06,16.604]
[1732329103002,20.0,254.16,254.06,16.604]
[1732329103293,23.776884,254.15,254.06,16.604]
[1732329103495,20.0,254.14,254.06,16.604]
[1732329104487,20.0,254.14,254.06,21.604]
[1732329104806,20.0,254.14,254.08,2.5]
[1732329105176,20.0,254.14,254.1,2.5]
[1732329105399,20.0,254.28,254.1,2.5]
[1732329105603,20.0,254.24,254.06,21.604]
[1732329105898,17.79717587,254.29,254.06,21.604]
[1732329105899,23.776884,254.21,254.06,21.604]
[1732329106105,23.776884,254.19,254.06,21.604]
[1732329106400,20.0,254.18,254.06,21.604]
[1732329106601,20.0,254.16,254.06,21.604]
[1732329107181,20.0,254.14,254.06,21.604]
[1732329107384,20.0,254.12,254.06,16.604]
[1732329107590,20.0,254.1,254.06,16.604]
[1732329107797,23.776884,254.09,254.06,16.604]
[1732329108181,23.776884,254.07,254.06,16.604]
[1732329108391,43.776884,254.07,254.06,16.604]
[1732329108701,43.776884,254.07,254.03,6.3137]
[1732329111790,43.776884,254.07,254.03,6.3137]
[1732329111990,23.776884,254.05,253.95,6.0062]
[1732329112201,23.776884,254.01,253.95,6.0062]
[1732329112509,23.776884,253.99,253.95,6.0062]
[1732329112705,23.776884,254.01,253.95,6.0062]
[1732329113008,23.776884,253.99,253.95,6.0062]
[1732329113506,23.776884,253.99,253.94,15.3274]
[1732329115313,20.0,254.14,253.97,2.5]
[1732329115606,20.0,254.14,253.95,2.5]
[1732329115806,5.2877087,254.13,253.94,15.3274]
[1732329115990,20.0,254.12,253.94,15.3274]
[1732329116191,20.0,254.12,253.95,2.5]
[1732329116684,23.776884,254.07,253.95,2.5]
[1732329116891,20.0,254.06,253.95,2.5]
[1732329117107,20.0,254.04,253.94,15.3274]
[1732329117408,23.776884,254.03,253.95,2.5]
[1732329117587,20.0,254.02,253.98,2.5]
[1732329118003,20.0,254.12,253.98,2.5]
[1732329118490,5.6492208,254.11,253.94,15.3274]
[1732329118695,20.0,254.1,253.94,15.3274]
[1732329118891,5.64890484,254.09,253.94,15.3274]
[1732329119096,43.776884,254.08,253.94,15.3274]
[1732329119996,55.516884,254.08,253.94,15.3274]
[1732329120197,55.516884,254.08,253.9,2.5]
[1732329120617,55.516884,254.08,253.83,2.5]
[1732329120791,55.516884,254.06,253.83,2.5]
[1732329121119,11.74,254.04,253.85,2.5]
[1732329121317,55.516884,254.03,253.83,2.5]
[1732329121508,55.516884,254.03,253.82,16.1235]
[1732329121809,11.74,254.01,253.82,16.1235]
[1732329122008,20.0,253.98,253.82,16.1235]
[1732329122208,23.776884,253.97,253.82,16.1235]
[1732329122405,23.776884,253.95,253.82,16.1235]
[1732329122611,20.0,253.92,253.77,2.5]
[1732329122913,23.776884,253.87,253.76,16.1235]
[1732329123103,20.0,253.84,253.76,16.1235]
[1732329123419,23.776884,253.83,253.76,16.1235]
[1732329124010,23.776884,253.81,253.76,16.1235]
[1732329124994,20.0,253.91,253.76,16.1235]
[1732329125307,23.776884,253.88,253.73,2.5]
[1732329125506,20.0,253.85,253.73,2.5]
[1732329125903,23.776884,253.84,253.73,2.5]
[1732329126122,23.776884,253.82,253.73,2.5]
[1732329126306,20.0,253.81,253.73,2.5]
[1732329126614,20.0,253.79,253.73,2.5]
[1732329127210,20.0,253.81,253.73,2.5]
[1732329127519,20.0,253.79,253.68,2.5]
[1732329127698,23.776884,253.78,253.68,2.5]
[1732329127896,20.0,253.75,253.68,2.5]
[1732329128206,20.0,253.73,253.68,2.5]
[1732329128606,23.776884,253.76,253.68,2.5]
[1732329128804,20.0,253.75,253.68,2.5]
[1732329129013,20.0,253.73,253.68,2.5]
[1732329129217,20.0,253.75,253.68,2.5]
[1732329130123,20.0,253.91,253.7,5.0]
[1732329130432,43.776884,253.83,253.7,5.0]
[1732329130637,20.0,253.83,253.7,5.0]
[1732329130921,23.776884,253.82,253.7,5.0]
[1732329131229,20.0,253.79,253.68,2.5]
[1732329131424,20.0,253.77,253.68,2.5]
[1732329131600,20.0,253.75,253.68,2.5]
[1732329132105,20.0,253.73,253.68,2.5]
[1732329132300,23.776884,253.72,253.68,2.5]
[1732329134027,20.0,253.72,253.64,16.1235]
[1732329134610,20.0,253.7,253.64,16.1235]
[1732329134811,20.0,253.7,253.65,2.5]
[1732329135208,20.0,253.7,253.64,18.6235]
[1732329135209,23.776884,253.73,253.67,2.5]
[1732329135425,20.0,253.72,253.67,2.5]
[1732329136020,20.0,253.72,253.65,2.5]
[1732329137120,20.0,253.72,253.64,16.1235]
[1732329137307,20.0,253.7,253.62,2.5]
[1732329137514,20.0,253.68,253.62,2.5]
[1732329137715,20.0,253.68,253.6,5.0]
[1732329138121,20.0,253.7,253.6,5.0]
[1732329138429,23.776884,253.69,253.6,5.0]
[1732329138732,23.776884,253.67,253.6,5.0]
[1732329139028,20.0,253.66,253.6,5.0]
[1732329139330,20.0,253.66,253.63,2.5]
[1732329139706,23.776884,253.75,253.63,2.5]
[1732329140027,20.0,253.74,253.65,2.5]
[1732329140325,7.32158065,253.77,253.65,2.5]
[1732329140529,12.05425386,253.86,253.65,2.5]
[1732329141026,12.05425386,253.86,253.64,2.5]
[1732329141206,12.05425386,253.84,253.64,2.5]
[1732329141406,17.3892208,253.88,253.65,2.5]
[1732329141607,17.3892208,253.88,253.66,2.5]
[1732329141608,43.776884,253.78,253.66,2.5]
[1732329142207,7.33132182,253.79,253.69,5.0]
[1732329142410,20.0,253.82,253.69,5.0]
[1732329143910,20.0,253.82,253.69,2.5]
[1732329144207,23.776884,253.79,253.69,2.5]
[1732329144507,20.0,253.76,253.69,2.5]
[1732329144826,20.0,253.74,253.65,2.5]
[1732329145129,20.0,253.74,253.68,2.5]
[1732329145323,20.0,253.74,253.66,2.5]
[1732329145829,20.0,253.74,253.64,2.5]
[1732329146009,23.776884,253.75,253.63,2.5]
[1732329146010,20.0,253.72,253.66,2.5]
[1732329146306,20.0,253.72,253.64,2.5]
[1732329146706,23.776884,253.73,253.61,5.0]
[1732329146913,23.776884,253.71,253.63,2.5]
[1732329147122,20.0,253.7,253.63,2.5]
[1732329147523,20.0,253.7,253.58,15.4091]
[1732329147524,20.0,253.74,253.69,2.5]
[1732329147724,20.0,253.74,253.67,2.5]
[1732329148236,20.0,253.82,253.69,5.0]
[1732329148441,20.0,253.82,253.69,2.5]
[1732329149139,20.0,253.82,253.7,2.5]
[1732329149314,7.57177793,253.85,253.73,2.5]
[1732329149634,6.6506,253.89,253.73,2.5]
[1732329150222,7.30296551,253.88,253.77,2.5]
[1732329150429,16.5955,253.91,253.77,2.5]
[1732329151314,16.5955,253.91,253.8,2.5]
[1732329151715,16.5955,253.91,253.78,2.5]
[1732329151910,24.16179537,253.91,253.78,2.5]
[1732329152333,24.16179537,253.91,253.73,2.5]
[1732329152535,12.05425386,253.88,253.71,16.289]
[1732329152720,20.0,253.86,253.71,16.289]
[1732329152914,23.776884,253.85,253.71,16.289]
[1732329153120,23.776884,253.83,253.71,16.289]
[1732329153637,23.776884,253.81,253.71,16.289]
[1732329153847,20.0,253.8,253.71,16.289]
[1732329154048,23.776884,253.79,253.71,16.289]
[1732329154340,23.776884,253.77,253.71,16.289]
[1732329154513,20.0,253.76,253.74,2.5]
[1732329154913,20.0,253.9,253.74,2.5]
[1732329155126,20.0,253.86,253.75,2.5]
[1732329155525,20.0,253.84,253.75,2.5]
[1732329155726,7.25619522,253.91,253.87,5.0]
[1732329155923,15.3844,254.09,253.93,2.5]
[1732329156126,15.3844,254.09,253.9,2.5]
[1732329156127,27.43865386,254.09,253.9,2.5]
[1732329156327,27.43865386,254.09,253.88,22.9209]
[1732329156328,15.3844,254.09,253.93,2.5]
[1732329157138,15.3844,254.09,253.93,5.0]
[1732329157338,15.3844,254.09,253.93,2.5]
[1732329157641,23.776884,254.08,253.91,2.5]
[1732329157943,35.516884,254.06,253.88,25.4209]
[1732329158135,23.776884,254.02,253.88,22.9209]
[1732329158326,20.0,254.01,253.88,16.6105]
[1732329158639,23.776884,253.98,253.88,16.6105]
[1732329158843,20.0,253.97,253.88,16.6105]
[1732329159144,20.0,253.93,253.88,16.6105]
[1732329159522,20.0,253.91,253.88,16.6105]
[1732329159942,23.776884,253.9,253.88,16.6105]
[1732329160118,23.776884,253.88,253.82,21.9283]
[1732329160827,23.776884,253.86,253.82,21.9283]
[1732329161422,23.776884,253.86,253.83,2.5]
[1732329161637,23.776884,253.86,253.82,21.9283]
[1732329162031,23.776884,253.86,253.82,24.4283]
[1732329162946,23.776884,253.86,253.83,2.5]
[1732329163145,23.776884,253.86,253.82,24.4283]
[1732329163730,23.776884,253.86,253.82,21.9283]
[1732329164037,23.776884,253.86,253.83,2.5]
[1732329164237,23.776884,253.86,253.82,15.8092]
[1732329164544,23.776884,253.86,253.83,2.5]
[1732329166527,20.0,253.87,253.85,2.5]
[1732329166731,20.0,253.97,253.85,2.5]
[1732329168037,23.776884,253.96,253.85,2.5]
[1732329168259,23.776884,253.92,253.85,2.5]
[1732329168462,20.0,253.89,253.82,15.8092]
[1732329168641,23.776884,253.86,253.82,15.8092]
[1732329169043,23.776884,253.88,253.82,15.8092]
[1732329169338,23.776884,253.86,253.82,15.8092]
[1732329169541,23.776884,253.88,253.82,15.8092]
[1732329169737,23.776884,253.86,253.82,15.8092]
[1732329169942,20.0,253.85,253.76,26.9283]